fUSD/lending_fUSD_20240708
["ID","MTS","AMOUNT","RATE_DAILY","PERIOD"]
[331443163,1720416644672,-151.0,0.00013996,2]
[331443164,1720416644681,-193.705702,0.00013996,2]
[331443165,1720416644690,-631.230294,0.00013996,2]
[331443166,1720416644699,-631.230294,0.00013996,2]
[331443167,1720416644709,-151.0,0.00013996,2]
[331443168,1720416644718,-150.0,0.00013997,2]
[331443169,1720416644728,-201.258385,0.00013998,2]
[331443170,1720416644738,-151.0,0.00013998,2]
[331443171,1720416644747,-151.0,0.00013998,2]
[331443172,1720416644757,-151.0,0.00013998,2]
[331443173,1720416644766,-39632.42757628,0.00013999,2]
[331443174,1720416644776,-11533.2892308,0.00013999,2]
[331443175,1720416644791,-355.95640784,0.00013999,2]
[331443176,1720416644801,-500.0,0.00013999,2]
[331443177,1720416644811,-500.0,0.00013999,2]
[331443178,1720416644820,-500.0,0.00013999,2]
[331443179,1720416644829,-500.0,0.00013999,2]
[331443180,1720416644839,-362.45245155,0.00013999,2]
[331443181,1720416644851,-151.0,0.00013999,2]
[331443182,1720416644939,-151.0,0.00013999,2]
[331443183,1720416644950,-151.0,0.00013999,2]
[331443184,1720416644959,-151.0,0.00013999,2]
[331443185,1720416644969,-153.320665,0.00013999,2]
[331443186,1720416644979,-151.0,0.00013999,2]
[331443187,1720416644988,-151.0,0.00013999,2]
[331443188,1720416644997,-440.969084,0.00013999,2]
[331443189,1720416645008,-151.0,0.00013999,2]
[331443190,1720416645017,-151.0,0.00013999,2]
[331443191,1720416645027,-237.319712,0.00013999,2]
[331443192,1720416645036,-237.319712,0.00013999,2]
[331443193,1720416645045,-151.0,0.00013999,2]
[331443194,1720416645054,-151.0,0.00013999,2]
[331443195,1720416645063,-151.0,0.00013999,2]
[331443196,1720416645072,-151.0,0.00013999,2]
[331443197,1720416645082,-220.671214,0.00013999,2]
[331443198,1720416645093,-658.33339,0.00013999,2]
[331443199,1720416645103,-173.271762,0.00013999,2]
[331443200,1720416645112,-220.671214,0.00013999,2]
[331443201,1720416645122,-151.0,0.00013999,2]
[331443202,1720416645133,-173.271762,0.00013999,2]
[331443203,1720416645143,-151.0,0.00013999,2]
[331443204,1720416645152,-208.6813478,0.00013999,2]
[331443205,1720416645161,-208.6813478,0.00013999,2]
[331443206,1720416645171,-52780.68082061,0.00014,2]
[331443208,1720416645847,-12912.82205891,0.00014,2]
[331443209,1720416646095,-1241.73529234,0.00014,2]
[331443210,1720416647117,-278.84,0.00013205,2]
[331443211,1720416647130,-281.356,0.00013205,2]
[331443212,1720416647145,-638.804,0.00013205,2]
[331443213,1720416647155,-9147.00615261,0.00014,2]
[331443214,1720416648442,-449.41355224,0.00011927,2]
[331443215,1720416648454,-1525.98186201,0.00011927,2]
[331443216,1720416648496,-155.22131332,0.00011927,2]
[331443217,1720416648505,-324.93960865,0.00013519,2]
[331443218,1720416648515,-231.90170231,0.00013599,2]
[331443219,1720416648525,-128421.50116105,0.00014,2]
[331443220,1720416648534,-151.0,0.00014,2]
[331443221,1720416648544,-151.0,0.00014,2]
[331443222,1720416648553,-151.0,0.00014,2]
[331443223,1720416648563,-151.0,0.00014,2]
[331443224,1720416648572,-151.0,0.00014,2]
[331443225,1720416648581,-151.0,0.00014,2]
[331443226,1720416648591,-151.0,0.00014,2]
[331443227,1720416648600,-151.0,0.00014,2]
[331443228,1720416648610,-151.0,0.00014,2]
[331443229,1720416648620,-151.0,0.00014,2]
[331443230,1720416648634,-151.0,0.00014,2]
[331443231,1720416648644,-219.404366,0.00014,2]
[331443232,1720416648653,-218.0,0.00014,2]
[331443233,1720416648663,-218.0,0.00014,2]
[331443234,1720416648672,-218.0,0.00014,2]
[331443235,1720416648682,-218.0,0.00014,2]
[331443236,1720416648691,-218.0,0.00014,2]
[331443237,1720416648700,-277.0,0.00014,2]
[331443238,1720416648709,-275132.32493497,0.00014,2]
[331443239,1720416650710,-822.66,0.00014,2]
[331443240,1720416652256,-1632.0,0.00012697,2]
[331443241,1720416652266,-1460.20828448,0.00013205,2]
[331443245,1720416803973,2687.24197765,0.00011199,2]
[331443246,1720416855429,9321.9461535,0.00011199,2]
[331443247,1720416876449,2493.38298312,0.00011199,2]
[331443248,1720416885305,698.5978577,0.00011199,2]
[331443249,1720416886286,301.16102379,0.00011199,2]
[331443250,1720416927517,1630.73333368,0.00011199,2]
[331443251,1720416937036,1407.0577592,0.00011199,7]
[331443252,1720416940068,1270.85793586,0.00011199,2]
[331443253,1720417007465,494.54290263,0.00011199,2]
[331443254,1720417020691,872.61248846,0.00011199,2]
[331443256,1720417039349,522.6303759,0.00011199,2]
[331443258,1720417060376,155.26782712,0.00011199,2]
[331443259,1720417060976,264.7511771,0.00011199,2]
[331443260,1720417061645,155.88798097,0.00011199,2]
[331443261,1720417083003,156.54838124,0.00011199,2]
[331443262,1720417084310,155.35316874,0.00011199,2]
[331443263,1720417085913,155.96440749,0.00011199,2]
[331443264,1720417093147,155.0,0.00011199,2]
[331443265,1720417093522,308.12292157,0.00011199,2]
[331443266,1720417093658,349.79342562,0.00011199,2]
[331443267,1720417094851,244.0,0.00011199,2]
[331443268,1720417103242,227.24934482,0.00011199,2]
[331443269,1720417107414,253.97336571,0.00011199,2]
[331443270,1720417113331,157.02434713,0.00011199,2]
[331443271,1720417117242,17249.14682295,0.00011199,2]
[331443272,1720417134660,155.4654819,0.00011199,2]
[331443273,1720417137971,361.9149352,0.00011199,2]
[331443274,1720417152461,1248.75780836,0.00011199,2]
[331443276,1720417227508,359.16,0.00010021,2]
[331443278,1720417329474,1629.97693128,0.00011199,2]
[331443279,1720417341832,719.92241163,0.00011199,2]
[331443280,1720417354816,22598.31692597,0.00011199,2]
[331443281,1720417384600,715.47290521,0.00011199,2]
[331443285,1720417418960,694.17816131,0.00011199,2]
[331443286,1720417441419,472.64375821,0.00011199,2]
[331443288,1720417444230,291.30212659,0.00011199,2]
[331443289,1720417473967,473.94679438,0.00011199,2]
[331443290,1720417525714,264.4890151,0.00011199,2]
[331443293,1720417561939,183.14189542,0.00011199,2]
[331443295,1720417595238,227.24934482,0.00011199,2]
[331443299,1720417705332,168.97473863,0.00011199,2]
[331443323,1720417772663,341.2,9.671e-05,2]
[331443340,1720417832612,-187.863475,0.00011478,2]
[331443341,1720417832622,-108.6966033,0.00011484,2]
[331443342,1720417832633,-715.5133967,0.00011484,2]
[331443343,1720417832642,-120.36821477,0.00011536,2]
[331443344,1720417832653,-34.69124967,0.00011536,2]
[331443345,1720417832663,-600.0,0.00011616,2]
[331443346,1720417832672,-566.64,0.00011617,2]
[331443347,1720417832681,-300.0,0.00011635,2]
[331443348,1720417832691,-250.0,0.00011636,2]
[331443349,1720417832700,-8326.73058321,0.00011636,2]
[331443350,1720417832711,-5025.49941679,0.00011636,2]
[331443351,1720417832720,-251.0,0.00011651,2]
[331443353,1720417832730,-3036.65,0.00011677,2]
[331443355,1720417832739,-250.0,0.00011702,2]
[331443357,1720417832748,-154.4,0.00011712,2]
[331443359,1720417832757,-341.2,0.00011935,2]
[331443361,1720417832766,-220.75,0.00012012,2]
[331443363,1720417832775,-154.4,0.00012017,2]
[331443365,1720417832784,-4984.40210747,0.00012214,2]
[331443367,1720417832796,-5409.28786295,0.00012214,2]
[331443369,1720417832807,-699.70135202,0.00012214,2]
[331443371,1720417832818,-427.5579,0.00012214,2]
[331443373,1720417832830,-469.36077756,0.00012214,2]
[331443376,1720417832841,-499.99,0.00012214,2]
[331443378,1720417832850,-212.07390488,0.0001226,2]
[331443380,1720417832861,-287.92609512,0.0001226,2]
[331443382,1720417832870,-22.90044258,0.0001226,2]
[331443384,1720417832881,-477.09955742,0.0001226,2]
[331443386,1720417832890,-500.0,0.0001226,2]
[331443388,1720417832900,-150.0,0.00012313,2]
[331443389,1720417832909,-154.4,0.00012322,2]
[331443390,1720417832918,-168.42,0.00012366,2]
[331443391,1720417832927,-916.90472297,0.000124,2]
[331443392,1720417832969,-3881.46547703,0.000124,2]
[331443393,1720417832978,-503.44415515,0.000124,2]
[331443394,1720417832988,-733.23494485,0.000124,2]
[331443395,1720417832998,-201.14974839,0.00012432,2]
[331443396,1720417833007,-169.17244151,0.0001249,2]
[331443397,1720417833018,-518.40021227,0.0001249,2]
[331443398,1720417833029,-1133.16129937,0.0001249,2]
[331443399,1720417833040,-1421.18809713,0.0001249,2]
[331443400,1720417833051,-558.15546194,0.0001249,2]
[331443401,1720417833062,-18.62358595,0.0001249,2]
[331443402,1720417833072,-1247.97817312,0.000125,2]
[331443403,1720417833083,-608.90012688,0.000125,2]
[331443404,1720417833093,-127493.47617572,0.000125,2]
[331443405,1720417833104,-1147.79718941,0.000125,2]
[331443406,1720417833115,-1239.5655,0.000125,2]
[331443407,1720417833126,-1304.59103902,0.000125,2]
[331443408,1720417834090,-8598.15399585,0.000125,2]
[331443409,1720417834099,-2318.78411493,0.000125,2]
[331443410,1720417834111,-12182.78132822,0.000125,2]
[331443411,1720417834123,-85498.43455685,0.000125,2]
[331443412,1720417834132,-154.29818798,0.000126,2]
[331443413,1720417834142,-400.0,0.00012632,2]
[331443414,1720417834151,-201.14974838,0.00012799,2]
[331443415,1720417834159,-323.88863465,0.0001282,2]
[331443416,1720417834168,-1879.10906557,0.0001288,2]
[331443417,1720417834179,-4121.07153573,0.0001288,2]
[331443418,1720417834189,-23332.16127814,0.0001288,2]
[331443419,1720417834200,-1916.80238943,0.0001288,2]
[331443420,1720417834554,-1506.26770272,0.0001288,2]
[331443421,1720417834567,-706.07482364,0.0001288,2]
[331443476,1720417838701,-118204.72397869,0.0001288,2]
[331443478,1720417838710,-206.35653631,0.000129,2]
[331443480,1720417838720,-172.85,0.0001292,2]
[331443482,1720417838731,-1145.89925317,0.00012941,2]
[331443484,1720417838741,-1000.0,0.0001297,2]
[331443486,1720417838751,-1000.0,0.0001297,2]
[331443488,1720417838760,-1000.0,0.0001297,2]
[331443490,1720417838770,-1917.27539911,0.0001297,2]
[331443492,1720417838780,-500.0,0.0001297,2]
[331443494,1720417838790,-500.0,0.0001297,2]
[331443496,1720417838800,-688.16685693,0.0001297,2]
[331443498,1720417838810,-298.21104625,0.0001299,2]
[331443500,1720417838820,-500.0,0.00013,2]
[331443502,1720417838829,-500.0,0.00013,2]
[331443504,1720417838839,-500.0,0.00013,2]
[331443506,1720417838851,-500.0,0.00013,2]
[331443508,1720417838861,-500.0,0.00013,2]
[331443510,1720417838870,-500.0,0.00013,2]
[331443512,1720417838880,-500.0,0.00013,2]
[331443514,1720417838894,-500.0,0.00013,2]
[331443517,1720417838904,-500.0,0.00013,2]
[331443519,1720417838914,-500.0,0.00013,2]
[331443521,1720417838924,-500.0,0.00013,2]
[331443523,1720417838934,-500.0,0.00013,2]
[331443525,1720417838943,-500.0,0.00013,2]
[331443527,1720417838953,-500.0,0.00013,2]
[331443529,1720417838963,-500.0,0.00013,2]
[331443531,1720417838973,-500.0,0.00013,2]
[331443533,1720417838983,-500.0,0.00013,2]
[331443535,1720417838993,-500.0,0.00013,2]
[331443537,1720417839002,-500.0,0.00013,2]
[331443539,1720417839012,-500.0,0.00013,2]
[331443541,1720417839022,-500.0,0.00013,2]
[331443543,1720417839032,-500.0,0.00013,2]
[331443545,1720417839043,-500.0,0.00013,2]
[331443547,1720417839052,-500.0,0.00013,2]
[331443549,1720417839062,-500.0,0.00013,2]
[331443551,1720417839072,-500.0,0.00013,2]
[331443553,1720417839082,-500.0,0.00013,2]
[331443555,1720417839094,-500.0,0.00013,2]
[331443557,1720417839104,-500.0,0.00013,2]
[331443559,1720417839113,-500.0,0.00013,2]
[331443561,1720417839123,-500.0,0.00013,2]
[331443563,1720417839134,-500.0,0.00013,2]
[331443565,1720417839144,-500.0,0.00013,2]
[331443567,1720417839154,-500.0,0.00013,2]
[331443569,1720417839164,-500.0,0.00013,2]
[331443571,1720417839175,-500.0,0.00013,2]
[331443573,1720417839186,-500.0,0.00013,2]
[331443575,1720417839197,-500.0,0.00013,2]
[331443577,1720417839208,-500.0,0.00013,2]
[331443579,1720417839218,-500.0,0.00013,2]
[331443581,1720417839229,-500.0,0.00013,2]
[331443583,1720417839240,-500.0,0.00013,2]
[331443585,1720417839251,-500.0,0.00013,2]
[331443587,1720417839261,-500.0,0.00013,2]
[331443589,1720417839272,-500.0,0.00013,2]
[331443591,1720417839282,-500.0,0.00013,2]
[331443593,1720417839292,-500.0,0.00013,2]
[331443595,1720417839302,-500.0,0.00013,2]
[331443597,1720417839312,-500.0,0.00013,2]
[331443599,1720417839322,-500.0,0.00013,2]
[331443601,1720417839333,-500.0,0.00013,2]
[331443603,1720417839343,-500.0,0.00013,2]
[331443605,1720417839353,-500.0,0.00013,2]
[331443607,1720417839363,-500.0,0.00013,2]
[331443609,1720417839374,-500.0,0.00013,2]
[331443611,1720417839384,-600.0,0.00013068,2]
[331443613,1720417839396,-500.0,0.00013082,2]
[331443615,1720417839406,-206.35653629,0.00013117,2]
[331443617,1720417839417,-462.12662794,0.00013128,2]
[331443619,1720417839427,-208.6813478,0.00013128,2]
[331443621,1720417839438,-740.228913,0.00013148,2]
[331443623,1720417839447,-257.809776,0.00013148,2]
[331443625,1720417839457,-157.531769,0.00013148,2]
[331443627,1720417839467,-187.204548,0.00013148,2]
[331443629,1720417839477,-171.786265,0.00013148,2]
[331443631,1720417839486,-183.066611,0.00013148,2]
[331443633,1720417839496,-3217.861855,0.00013148,2]
[331443635,1720417839506,-182.70747,0.00013148,2]
[331443637,1720417839517,-4315.312089,0.00013148,2]
[331443639,1720417839526,-5926.363616,0.00013148,2]
[331443641,1720417839540,-180.656688,0.00013148,2]
[331443643,1720417839550,-1042.748956,0.00013148,2]
[331443645,1720417839559,-172.938231,0.00013148,2]
[331443647,1720417839570,-353.440427,0.00013148,2]
[331443649,1720417839581,-174.544421,0.00013148,2]
[331443651,1720417839593,-198.106994,0.00013148,2]
[331443653,1720417839604,-658.484846,0.00013148,2]
[331443655,1720417839615,-201.14974838,0.00013166,2]
[331443656,1720417839625,-87699.31854135,0.00013205,2]
[331443659,1720417839636,-323.88863465,0.00013236,2]
[331443660,1720417839646,-246.68749225,0.00013302,2]
[331443663,1720417839657,-740.228913,0.00013312,2]
[331443665,1720417839667,-3217.861855,0.00013312,2]
[331443667,1720417839678,-4315.312089,0.00013312,2]
[331443668,1720417839688,-5926.363616,0.00013312,2]
[331443670,1720417839698,-1042.748956,0.00013312,2]
[331443673,1720417839708,-353.440427,0.00013312,2]
[331443676,1720417839718,-658.484846,0.00013312,2]
[331443678,1720417839728,-182.70747,0.00013367,2]
[331443681,1720417839739,-200.0,0.000134,4]
[331443685,1720417839749,-206.35653629,0.00013414,2]
[331443688,1720417839758,-1600.0,0.00013441,2]
[331443691,1720417839769,-300.416,0.00013441,2]
[331443694,1720417839779,-740.228913,0.00013477,2]
[331443697,1720417839790,-171.786265,0.00013477,2]
[331443699,1720417839800,-183.066611,0.00013477,2]
[331443701,1720417839811,-3217.861855,0.00013477,2]
[331443703,1720417839821,-4315.312089,0.00013477,2]
[331443705,1720417839831,-5926.363616,0.00013477,2]
[331443707,1720417839840,-353.440427,0.00013477,2]
[331443709,1720417839853,-1042.748956,0.00013477,2]
[331443711,1720417839863,-658.484846,0.00013477,2]
[331443713,1720417839873,-362.018,0.00013485,2]
[331443715,1720417839883,-1107.723,0.00013485,2]
[331443717,1720417839896,-1846.945,0.00013485,2]
[331443719,1720417839912,-467.741,0.00013485,2]
[331443721,1720417839923,-150.439,0.00013485,2]
[331443723,1720417839933,-166.995,0.00013485,2]
[331443725,1720417839943,-809.0,0.00013485,2]
[331443727,1720417839955,-450.077,0.00013485,2]
[331443729,1720417839966,-2376.0,0.00013485,2]
[331443731,1720417839984,-1304.0,0.00013485,2]
[331443733,1720417839997,-3249.0,0.00013485,2]
[331443735,1720417840009,-1964.0,0.00013485,2]
[331443737,1720417840020,-549.0,0.00013485,2]
[331443739,1720417840031,-5814.0,0.00013485,2]
[331443741,1720417840040,-210.659,0.00013485,2]
[331443743,1720417840050,-150.166,0.00013485,2]
[331443745,1720417840059,-638.804,0.00013485,2]
[331443747,1720417840069,-151.477,0.00013485,2]
[331443749,1720417840079,-4343.934,0.00013485,2]
[331443751,1720417840088,-14714.414,0.00013485,2]
[331443753,1720417840100,-1071.0,0.00013485,2]
[331443755,1720417840110,-500.0,0.000135,4]
[331443757,1720417840121,-201.14974838,0.00013533,2]
[331443759,1720417840130,-1000.0,0.0001357,2]
[331443761,1720417840140,-500.0,0.0001357,2]
[331443763,1720417840150,-227.24934482,0.00013574,2]
[331443765,1720417840161,-261.3858728,0.00013574,2]
[331443767,1720417840171,-182.70747,0.00013586,2]
[331443769,1720417840182,-1000.0,0.000136,2]
[331443770,1720417840191,-225.0,0.000136,2]
[331443771,1720417840201,-511.4,0.000136,2]
[331443772,1720417840212,-356.0,0.000136,2]
[331443773,1720417840223,-700.0,0.000136,4]
[331443774,1720417840233,-154.60113488,0.00013605,2]
[331443775,1720417840243,-740.228913,0.00013641,2]
[331443776,1720417840254,-3217.861855,0.00013641,2]
[331443778,1720417840264,-4315.312089,0.00013641,2]
[331443779,1720417840275,-5926.363616,0.00013641,2]
[331443780,1720417840285,-1042.748956,0.00013641,2]
[331443781,1720417840294,-353.440427,0.00013641,2]
[331443782,1720417840305,-658.484846,0.00013641,2]
[331443783,1720417840315,-323.88863465,0.00013652,2]
[331443784,1720417840326,-1000.0,0.0001367,2]
[331443785,1720417840336,-500.0,0.0001367,2]
[331443786,1720417840347,-1000.0,0.00013698,5]
[331443787,1720417840358,-1102.48349703,0.00013698,5]
[331443788,1720417840368,-200.0,0.00013699,2]
[331443789,1720417840378,-500.0,0.00013699,2]
[331443790,1720417840387,-10000.0,0.00013699,2]
[331443792,1720417840398,-2140.95,0.00013699,2]
[331443793,1720417840407,-200.0,0.00013699,2]
[331443794,1720417840417,-250.0,0.00013699,2]
[331443795,1720417840427,-1500.0,0.00013699,5]
[331443796,1720417840437,-12905.24,0.00013699,2]
[331443797,1720417840447,-2751.0,0.00013699,2]
[331443798,1720417840457,-150.0,0.00013699,2]
[331443799,1720417840466,-150.0,0.00013699,2]
[331443800,1720417840476,-1000.0,0.000137,5]
[331443801,1720417840486,-25000.0,0.00013705,2]
[331443802,1720417840496,-1000.0,0.00013705,2]
[331443803,1720417840507,-206.35653629,0.00013711,2]
[331443804,1720417840516,-1055.0778888,0.0001372,2]
[331443805,1720417840526,-150.0,0.00013726,2]
[331443806,1720417840538,-150.0,0.00013726,2]
[331443807,1720417840548,-150.0,0.00013727,2]
[331443808,1720417840558,-150.0,0.00013727,2]
[331443809,1720417840568,-203.0,0.0001373,2]
[331443810,1720417840581,-12777.11077048,0.00013736,2]
[331443811,1720417840590,-150.0,0.00013738,2]
[331443812,1720417840601,-150.0,0.00013739,2]
[331443813,1720417840611,-150.0,0.0001374,2]
[331443814,1720417840622,-150.0,0.00013745,2]
[331443815,1720417840633,-150.0,0.00013751,2]
[331443816,1720417840643,-150.0,0.00013752,2]
[331443817,1720417840653,-154.60113487,0.00013753,2]
[331443818,1720417840662,-150.0,0.00013755,2]
[331443819,1720417840673,-150.0,0.00013756,2]
[331443820,1720417840682,-150.0,0.0001376,2]
[331443821,1720417840692,-150.0,0.00013762,2]
[331443822,1720417840702,-150.0,0.00013766,2]
[331443823,1720417840712,-150.0,0.00013776,2]
[331443824,1720417840721,-150.0,0.00013782,2]
[331443825,1720417840731,-150.0,0.00013785,2]
[331443826,1720417840741,-150.0,0.00013786,2]
[331443827,1720417840750,-150.0,0.00013793,2]
[331443828,1720417840760,-150.0,0.00013794,2]
[331443829,1720417840769,-150.0,0.00013795,2]
[331443830,1720417840779,-150.0,0.00013797,2]
[331443831,1720417840788,-1200.0,0.000138,5]
[331443832,1720417840797,-150.0,0.00013803,2]
[331443833,1720417840806,-150.0,0.00013804,2]
[331443834,1720417840816,-157.531769,0.00013805,2]
[331443835,1720417840826,-187.204548,0.00013805,2]
[331443836,1720417840836,-182.70747,0.00013805,2]
[331443837,1720417840848,-172.938231,0.00013805,2]
[331443838,1720417840858,-174.544421,0.00013805,2]
[331443839,1720417840868,-740.228913,0.00013805,2]
[331443840,1720417840877,-171.786265,0.00013805,2]
[331443841,1720417840889,-183.066611,0.00013805,2]
[331443842,1720417840902,-3217.861855,0.00013805,2]
[331443843,1720417840912,-4315.312089,0.00013805,2]
[331443844,1720417840922,-5926.363616,0.00013805,2]
[331443845,1720417840932,-1042.748956,0.00013805,2]
[331443846,1720417840941,-353.440427,0.00013805,2]
[331443847,1720417840951,-658.484846,0.00013805,2]
[331443848,1720417840961,-150.0,0.00013808,2]
[331443849,1720417840970,-150.0,0.00013809,2]
[331443850,1720417840979,-150.0,0.00013816,2]
[331443851,1720417840989,-150.0,0.00013824,2]
[331443852,1720417840998,-203.63992961,0.00013827,2]
[331443853,1720417841008,-150.0,0.00013828,2]
[331443854,1720417841017,-150.0,0.00013837,2]
[331443855,1720417841026,-150.0,0.00013841,2]
[331443856,1720417841035,-300.0,0.00013844,2]
[331443857,1720417841044,-150.0,0.00013845,2]
[331443858,1720417841053,-150.0,0.00013856,2]
[331443859,1720417841062,-150.0,0.00013857,2]
[331443860,1720417841071,-151.5284,0.0001386,2]
[331443861,1720417841080,-173.51754,0.0001386,2]
[331443862,1720417841090,-2269.58618,0.0001386,2]
[331443863,1720417841105,-1088.0,0.00013862,2]
[331443864,1720417841114,-150.0,0.00013863,2]
[331443865,1720417841123,-150.0,0.00013864,2]
[331443866,1720417841133,-150.0,0.00013865,2]
[331443867,1720417841142,-150.0,0.00013871,2]
[331443868,1720417841150,-150.0,0.00013876,2]
[331443869,1720417841159,-197.31369023,0.00013889,2]
[331443870,1720417841167,-300.0,0.0001389,2]
[331443871,1720417841176,-150.0,0.00013898,2]
[331443872,1720417841185,-1000.6725,0.00013899,2]
[331443873,1720417841195,-167.81484512,0.000139,2]
[331443874,1720417841204,-178.45990259,0.000139,2]
[331443875,1720417841213,-182.34687994,0.000139,2]
[331443876,1720417841223,-200.0,0.000139,5]
[331443877,1720417841232,-7500.0,0.000139,2]
[331443878,1720417841241,-201.14974838,0.000139,2]
[331443879,1720417841250,-204.47380482,0.000139,2]
[331443880,1720417841260,-154.60113487,0.000139,2]
[331443881,1720417841269,-946.17967956,0.000139,2]
[331443882,1720417841277,-150.0,0.00013901,2]
[331443883,1720417841286,-150.0,0.00013904,2]
[331443884,1720417841295,-150.64423964,0.00013904,2]
[331443885,1720417841304,-500.0,0.00013904,2]
[331443886,1720417841313,-500.0,0.00013904,2]
[331443887,1720417841323,-150.0,0.00013911,2]
[331443888,1720417841332,-150.0,0.00013911,2]
[331443889,1720417841343,-150.0,0.00013914,2]
[331443890,1720417841353,-150.0,0.00013918,2]
[331443891,1720417841361,-385.96925274,0.0001392,2]
[331443892,1720417841370,-150.0,0.00013922,2]
[331443893,1720417841379,-1541.50297644,0.00013925,2]
[331443894,1720417841388,-150.0,0.00013928,2]
[331443895,1720417841397,-1514.59732339,0.00013928,2]
[331443896,1720417841406,-150.0,0.00013931,2]
[331443897,1720417841415,-150.0,0.00013953,2]
[331443898,1720417841424,-150.0,0.00013956,2]
[331443899,1720417841432,-150.0,0.00013957,2]
[331443900,1720417841441,-159.1426119,0.00013964,2]
[331443901,1720417841450,-3324.49102892,0.00013964,2]
[331443902,1720417841459,-150.0,0.00013966,2]
[331443903,1720417841468,-150.0,0.00013968,2]
[331443904,1720417841478,-1000.0,0.0001397,2]
[331443905,1720417841487,-1000.0,0.0001397,2]
[331443906,1720417841496,-1000.0,0.0001397,2]
[331443907,1720417841506,-1000.0,0.0001397,2]
[331443908,1720417841515,-500.0,0.0001397,2]
[331443909,1720417841524,-500.0,0.0001397,2]
[331443910,1720417841534,-500.0,0.0001397,2]
[331443911,1720417841545,-500.0,0.0001397,2]
[331443912,1720417841554,-150.0,0.00013972,2]
[331443913,1720417841563,-2000.0,0.00013973,3]
[331443914,1720417841574,-150.0,0.00013976,2]
[331443915,1720417841583,-150.0,0.00013977,2]
[331443916,1720417841594,-150.0,0.00013977,2]
[331443917,1720417841603,-150.0,0.00013985,2]
[331443918,1720417841614,-150.0,0.00013986,2]
[331443919,1720417841623,-204.85223912,0.00013988,2]
[331443920,1720417841632,-205.25625012,0.00013988,2]
[331443921,1720417841642,-150.0,0.00013988,2]
[331443922,1720417841651,-150.076022,0.00013988,2]
[331443923,1720417841660,-150.0,0.00013988,2]
[331443924,1720417841670,-24188.1322229,0.00013989,2]
[331443925,1720417841679,-8885.9551669,0.00013989,2]
[331443926,1720417841689,-471.405628,0.00013989,2]
[331443927,1720417841698,-1480.3134394,0.00013989,2]
[331443928,1720417841707,-603.64535378,0.0001399,2]
[331443929,1720417841716,-45471.87740648,0.0001399,2]
[331443930,1720417841805,-6688.73988323,0.0001399,2]
[331443931,1720417841816,-2995.97861347,0.0001399,2]
[331443932,1720417841839,-26269.96653602,0.0001399,2]
[331443933,1720417841852,-7337.980433,0.0001399,2]
[331443934,1720417841862,-150.0,0.0001399,2]
[331443935,1720417841871,-246.68749225,0.0001399,2]
[331443936,1720417841881,-246.68749225,0.0001399,2]
[331443937,1720417841891,-150.0,0.00013991,2]
[331443938,1720417841902,-150.0,0.00013991,2]
[331443939,1720417841911,-5800.0,0.00013991,2]
[331443940,1720417841922,-288.63626183,0.00013999,2]
[331443941,1720417841932,-4004.16802866,0.00013999,2]
[331443942,1720417841944,-355.95640784,0.00013999,2]
[331443943,1720417841952,-500.0,0.00013999,2]
[331443944,1720417841961,-500.0,0.00013999,2]
[331443945,1720417841971,-400.00000001,0.00013999,2]